Workbook

Sheet Portfólio
R2: Pontos
R3: 100
B26: Seleção de Portfólios
C27: Taxas de Retorno | G27: Matriz de Covariâncias - C
A28: Trimestre | B28: a | C28: b | D28: c | F28: Cias. | G28: a | H28: b | I28: c | K28: P | M28: R | R28: Risco | S28: Retorno | U28: Risco | V28: Retorno
A29: 1 | B29: -0.3993 | C29: -0.5363 | D29: 0.2527 | F29: a | G29: =COVAR(B29:B48,B29:B48)*20/19 -> 0.04411700326 | H29: =COVAR(B29:B48,C29:C48)*20/19 -> 0.04815283947 | I29: =COVAR(B29:B48,D29:D48)*20/19 -> 0.01249875963 | K29: =M33/M36 -> 0 | M29: =B50 -> 0.09713 | R29: =Q40 -> 0.05973401839 | S29: =K37 -> 0.099345 | U29: 0.04411700326 | V29: 0.09713 | W29: a
A30: 2 | B30: 0.2852 | C30: 0.472 | D30: -0.0446 | F30: b | G30: =COVAR(C29:C48,B29:B48)*20/19 -> 0.04815283947 | H30: =COVAR(C29:C48,C29:C48)*20/19 -> 0.1039099705 | I30: =COVAR(C29:C48,D29:D48)*20/19 -> 0.02308568737 | K30: =M34/M36 -> 0 | M30: =C50 -> 0.1109 | R30: 0.05312554455 | S30: 0.1039221786 | U30: 0.1039099705 | V30: 0.1109 | W30: b
A31: 3 | B31: 0.0352 | C31: -0.2399 | D31: 0.0084 | F31: c | G31: =COVAR(D29:D48,B29:B48)*20/19 -> 0.01249875963 | H31: =COVAR(D29:D48,C29:C48)*20/19 -> 0.02308568737 | I31: =COVAR(D29:D48,D29:D48)*20/19 -> 0.05973401839 | K31: =M35/M36 -> 1 | M31: =D50 -> 0.099345 | R31: 0.04488764335 | S31: 0.1017126596 | U31: 0.05973401839 | V31: 0.099345 | W31: c
A32: 4 | B32: -0.0863 | C32: 0.3272 | D32: 0.1515 | R32: 0.04255420088 | S32: 0.101419125
A33: 5 | B33: 0.0988 | C33: 0.4468 | D33: 0.0801 | G33: a | H33: b | I33: c | J33: Total | L33: =RANDBETWEEN(0,100) -> 17 | M33: 0 | R33: 0.03563455341 | S33: 0.09967106936
A34: 6 | B34: 0.2068 | C34: 0.0871 | D34: 0.069 | F34: Partic. PT | G34: =K29 -> 0 | H34: =K30 -> 0 | I34: =K31 -> 1 | J34: =SUM(K29:K31) -> 1 | M34: 0 | R34: 0.03216220445 | S34: 0.09801949324
A35: 7 | B35: 0.2184 | C35: -0.032 | D35: 0.3187 | F35: Aplicação | G35: =K29*$I$43 -> 0 | H35: =K30*$I$43 -> 0 | I35: =K31*$I$43 -> 100000 | J35: =SUM(G35:I35) -> 100000 | M35: 100 | R35: 0.04777670975 | S35: 0.1041473737
A36: 8 | B36: 0.0948 | C36: 0.2911 | D36: 0.6426 | M36: =SUM(M33:M35) -> 100 | R36: 0.03997074992 | S36: 0.1021168812
A37: 9 | B37: -0.0574 | C37: -0.1441 | D37: -0.0515 | G37: Retorno esperado | I37: =B50*K29+C50*K30+D50*K31 -> 0.099345 | J37: : = PT R = | K37: =MMULT(G34:I34,M29:M31) -> 0.099345 | R37: 0.0396096184 | S37: 0.1019903947
A38: 10 | B38: 0.3892 | C38: 0.6602 | D38: 0.6192 | G38: Retorno Desejado | I38: 0.1 | R38: 0.04044563889 | S38: 0.1021520089
A39: 11 | B39: 0.0788 | C39: -0.2834 | D39: -0.1737 | K39: PT | O39: C P | R39: 0.04350469747 | S39: 0.1029909091
A40: 12 | B40: -0.2702 | C40: -0.3957 | D40: -0.1215 | G40: Variância da carteira | I40: =G29*K29^2+H30*K30^2+I31*K31^2+2*(G30*K29*K30+G31*K29*K31+H31*K30*K31) -> 0.05973401839 | J40: : = PT C P = | K40: =G34 -> 0 | L40: =H34 -> 0 | M40: =I34 -> 1 | N40: x | O40: =MMULT(G29:I31,K29:K31) -> 0.01249875963 | P40: = | Q40: =MMULT(K40:M40,O40:O42) -> 0.05973401839 | R40: 0.03393244361 | S40: 0.09861393443
A41: 13 | B41: 0.3845 | C41: 0.1928 | D41: -0.0188 | G41: Desvio Padrão | I41: =SQRT(I40) -> 0.2444054386 | O41: 0.02308568737 | R41: 0.07829085393 | S41: 0.1074098469
A42: 14 | B42: 0.2549 | C42: 0.4497 | D42: 0.003 | O42: 0.05973401839 | R42: 0.03923015821 | S42: 0.1010508491
A43: 15 | B43: 0.0099 | C43: 0.01 | D43: -0.269 | G43: Capital Disponível | I43: 100000 | R43: 0.04276323375 | S43: 0.1027914362
A44: 16 | B44: 0.3169 | C44: 0.0349 | D44: 0.4325 | R44: 0.03570251203 | S44: 0.1000155233
A45: 17 | B45: 0.2495 | C45: 0.4279 | D45: -0.0434 | F45: Variância do portfólio | R45: 0.03155898693 | S45: 0.0981046
A46: 18 | B46: 0.05 | C46: 0.1263 | D46: -0.0476 | R46: 0.03367536304 | S46: 0.09950022727
A47: 19 | B47: -0.1209 | C47: -0.0209 | D47: 0.0314 | R47: 0.04044885307 | S47: 0.1021457795
A48: 20 | B48: 0.2038 | C48: 0.3443 | D48: 0.1479 | R48: 0.05986358452 | S48: 0.1064284375
R49: 0.04490751559 | S49: 0.1033713426
A50: Média | B50: =AVERAGE(B29:B48) -> 0.09713 | C50: =AVERAGE(C29:C48) -> 0.1109 | D50: =AVERAGE(D29:D48) -> 0.099345 | R50: 0.05558564052 | S50: 0.1039357874
R51: 0.04393318871 | S51: 0.1032510065
R52: 0.05444312096 | S52: 0.104962243
R53: 0.0536394424 | S53: 0.1051812963
R54: 0.05336094747 | S54: 0.1053893571
R55: 0.03525258072 | S55: 0.1000654839
R56: 0.04569655877 | S56: 0.1022454938
R57: 0.04889329583 | S57: 0.1027825974
R58: 0.03833217968 | S58: 0.1008480183
R59: 0.04442808106 | S59: 0.1031404724
R60: 0.03570934181 | S60: 0.09999989437
R61: 0.04562303921 | S61: 0.101464462
R62: 0.04479605008 | S62: 0.1032799593
R63: 0.03780810767 | S63: 0.1011079148
R64: 0.04981844509 | S64: 0.1042327607
R65: 0.03711248137 | S65: 0.1003004274
R66: 0.0392726892 | S66: 0.1018562264
R67: 0.05176485225 | S67: 0.1049579365
R68: 0.04426100679 | S68: 0.1032378929
R69: 0.04006221169 | S69: 0.1021015247
R70: 0.04779153052 | S70: 0.1033655612
R71: 0.05655634125 | S71: 0.1042763448
R72: 0.04371307196 | S72: 0.0994827027
R73: 0.03518096442 | S73: 0.09878140741
R74: 0.0558134608 | S74: 0.1054231122
R75: 0.03683247503 | S75: 0.1000437417
R76: 0.04126526872 | S76: 0.1022000216
R77: 0.04161207338 | S77: 0.1020771374
R78: 0.05041664755 | S78: 0.1044073871
R79: 0.06358152895 | S79: 0.1057756051
R80: 0.04467144191 | S80: 0.1021073224
R81: 0.04372499128 | S81: 0.1027987429
R82: 0.06446456294 | S82: 0.1070667391
R83: 0.04868503968 | S83: 0.1030241085
R84: 0.03661572901 | S84: 0.1007813402
R85: 0.04643344866 | S85: 0.1038335025
R86: 0.03865293373 | S86: 0.101404881
R87: 0.07410376963 | S87: 0.1080570388
R88: 0.06717183487 | S88: 0.1059434211
R89: 0.03460631351 | S89: 0.09981008152
R90: 0.03702969126 | S90: 0.1005382828
R91: 0.03952002375 | S91: 0.1018466118
R92: 0.06707399755 | S92: 0.1053719207
R93: 0.07550125718 | S93: 0.1082284756
R94: 0.08859838944 | S94: 0.1093955446
R95: 0.04117708627 | S95: 0.102469973
R96: 0.04684554508 | S96: 0.1025021154
R97: 0.03678135708 | S97: 0.1001517442
R98: 0.0559854837 | S98: 0.1059052581
R99: 0.03401864103 | S99: 0.09908217391
R100: 0.03522812732 | S100: 0.09858821429
R101: 0.05958077824 | S101: 0.1050391786
R102: 0.04377266466 | S102: 0.1032049007
R103: 0.05051725673 | S103: 0.1036922646
R104: 0.05562038309 | S104: 0.1057029885
R105: 0.06050763867 | S105: 0.1063473305
R106: 0.0326596172 | S106: 0.09879072115
R107: 0.03971874032 | S107: 0.1004920714
R108: 0.03264520406 | S108: 0.09869323276
R109: 0.04681183644 | S109: 0.1032117632
R110: 0.04312244342 | S110: 0.1016024194
R111: 0.0427294345 | S111: 0.1026910904
R112: 0.03588056967 | S112: 0.1004075904
R113: 0.04764762146 | S113: 0.1038400568
R114: 0.05968387008 | S114: 0.1062141883
R115: 0.0394638961 | S115: 0.1016272772
R116: 0.04320373329 | S116: 0.1017861869
R117: 0.04840124496 | S117: 0.1043359732
R118: 0.03920170844 | S118: 0.1017171658
R119: 0.03425590401 | S119: 0.09961169271
R120: 0.04478884726 | S120: 0.1020675281
R121: 0.05788590169 | S121: 0.10621155
R122: 0.03368683806 | S122: 0.09944407035
R123: 0.04882881451 | S123: 0.1043814467
R124: 0.05997821965 | S124: 0.1064354673
R125: 0.03828516524 | S125: 0.1013426471
R126: 0.04485091142 | S126: 0.1033489691
R127: 0.03966801312 | S127: 0.1020259259
R128: 0.03283252067 | S128: 0.09912643293
R129: 0.04435753963 | S129: 0.1032016331
R130: 0.05124946079 | S130: 0.1042124269
R131: 0.03857386604 | S131: 0.1016295217
R132: 0.0670454016 | S132: 0.1071030114
R133: 0.03368551353 | S133: 0.09839203488
R134: 0.03329304155 | S134: 0.09933154696
R135: 0.04657185943 | S135: 0.1032360455
R136: 0.04116378149 | S136: 0.1020943333
R137: 0.04818297093 | S137: 0.1037499333
R138: 0.07515413408 | S138: 0.107895339
R139: 0.06917940205 | S139: 0.1068270229
R140: 0.04022355915 | S140: 0.1020863801
R141: 0.03622289235 | S141: 0.1007411058
R142: 0.03771915746 | S142: 0.09841470588
R143: 0.04269396301 | S143: 0.1021836149
R144: 0.04268515613 | S144: 0.1019872414
R145: 0.04260075053 | S145: 0.1026231044
R146: 0.03962937406 | S146: 0.1019851613
R147: 0.03273231778 | S147: 0.09872799479
R148: 0.04585560266 | S148: 0.1034994275
R149: 0.04066503058 | S149: 0.102230753
R150: 0.03876839552 | S150: 0.1016387443
R151: 0.0490266215 | S151: 0.1031552146
R152: 0.04254654533 | S152: 0.1003958621
R153: 0.04532351217 | S153: 0.102185989
R154: 0.03369802925 | S154: 0.09904331967
R155: 0.04406486618 | S155: 0.09972505263
R156: 0.06891960938 | S156: 0.1064720732
R157: 0.05747418086 | S157: 0.1045896311
R158: 0.04066615291 | S158: 0.1023248678
R159: 0.03532286824 | S159: 0.09955666667
R160: 0.03541190677 | S160: 0.09955811688
R161: 0.04133569296 | S161: 0.1022638843
R162: 0.03950360504 | S162: 0.1019566667
R163: 0.04024120231 | S163: 0.1020991121
R164: 0.0574628557 | S164: 0.1054998162
R165: 0.04086773534 | S165: 0.1013072069
R166: 0.03923690248 | S166: 0.1000459091
R167: 0.071250678 | S167: 0.1078599206
R168: 0.0443462655 | S168: 0.101953125
R169: 0.04689935792 | S169: 0.103745947
R170: 0.03490865841 | S170: 0.1001783607
R171: 0.05383409853 | S171: 0.1050877326
R172: 0.04388342312 | S172: 0.1027942778
R173: 0.03144807466 | S173: 0.09804205882
R174: 0.07638292807 | S174: 0.1072912857
R175: 0.03455426234 | S175: 0.1000612363
R176: 0.0485075995 | S176: 0.1029825556
R177: 0.03290308784 | S177: 0.09880533505
R178: 0.04619930776 | S178: 0.103819596
R179: 0.04743871301 | S179: 0.1027028916
R180: 0.06064344848 | S180: 0.1041746491
R181: 0.03425267428 | S181: 0.09943025773
R182: 0.06866674155 | S182: 0.1063551648
R183: 0.04909304886 | S183: 0.104476825
R184: 0.08319436471 | S184: 0.108432037
R185: 0.03438954111 | S185: 0.09990945355
R186: 0.05411559432 | S186: 0.1055435106
R187: 0.03481948497 | S187: 0.09979205479
R188: 0.04187616851 | S188: 0.1026855128
R189: 0.06130147975 | S189: 0.1053204403
R190: 0.04294569983 | S190: 0.1004682083
R191: 0.04198515366 | S191: 0.1014647015
R192: 0.0422776369 | S192: 0.1007406322
R193: 0.05290022413 | S193: 0.104458
R194: 0.04720367949 | S194: 0.1040174823
R195: 0.04051884817 | S195: 0.1021612983
R196: 0.0320724686 | S196: 0.0979264527
R197: 0.04268806341 | S197: 0.1027754194
R198: 0.05173574371 | S198: 0.1034414912
R199: 0.0439474617 | S199: 0.1020444643
R200: 0.04044818162 | S200: 0.1021537107
R201: 0.04809353175 | S201: 0.1030450245
R202: 0.04050190446 | S202: 0.09775758621
R203: 0.068635665 | S203: 0.1068590435
R204: 0.05118787199 | S204: 0.1048043333
R205: 0.05612179527 | S205: 0.1058513542
R206: 0.03629484285 | S206: 0.100565082
R207: 0.03375859535 | S207: 0.09965468912
R208: 0.07584793261 | S208: 0.1084658108
R209: 0.0487386408 | S209: 0.1007103788
R210: 0.04402575522 | S210: 0.102836128
R211: 0.05735438562 | S211: 0.1046805882
R212: 0.03325095184 | S212: 0.09937935323
R213: 0.03494273947 | S213: 0.09882271812
R214: 0.03430333035 | S214: 0.0990177193
R215: 0.03567852882 | S215: 0.09972298013
R216: 0.0572660297 | S216: 0.1061023592
R217: 0.04386912813 | S217: 0.1028030046
R218: 0.0494571198 | S218: 0.1031483929
R219: 0.03433569902 | S219: 0.09995471354
R220: 0.05501712651 | S220: 0.1044475806
R221: 0.04356204527 | S221: 0.09901755
R222: 0.04035389595 | S222: 0.1011338017
R223: 0.03785892543 | S223: 0.1014094
... 4277 more rows
